bitfinex-derivatives/quotes_BTCF0:USTF0_20241210
["timestamp","ask_amount","ask_price","bid_price","bid_amount"]
[1733798205492,0.38708558,97500.0,97499.0,0.01923049]
[1733798205779,0.38708558,97500.0,97499.0,1.51923049]
[1733798205780,0.02628558,97500.0,97499.0,1.51923049]
[1733798206671,0.02628558,97500.0,97499.0,1.5289542]
[1733798207387,0.02328558,97500.0,97499.0,1.5289542]
[1733798207986,0.3608,97507.0,97499.0,1.5802082]
[1733798208175,0.3608,97507.0,97500.0,0.01923049]
[1733798208377,0.3608,97507.0,97501.0,0.01923049]
[1733798208574,0.3608,97507.0,97502.0,0.01923049]
[1733798208778,0.3608,97507.0,97499.0,1.56149771]
[1733798208779,0.00012269,97506.0,97503.0,0.01923046]
[1733798208972,0.00012269,97506.0,97504.0,0.01923046]
[1733798209269,0.00012269,97506.0,97505.0,0.01923046]
[1733798210080,0.00012269,97506.0,97505.0,0.00320489]
[1733798210280,0.00012269,97506.0,97466.0,0.18373353]
[1733798210281,0.051253,97500.0,97493.0,0.051257]
[1733798210587,0.3608,97495.0,97494.0,0.01923055]
[1733798211286,0.48317249,97495.0,97494.0,0.01923055]
[1733798211582,0.412056,97495.0,97494.0,1e-08]
[1733798212880,0.414056,97495.0,97494.0,1e-08]
[1733798213779,0.414056,97495.0,97491.0,0.05121801]
[1733798213980,0.414056,97495.0,97489.0,1.50052]
[1733798213981,0.48528992,97495.0,97493.0,0.051257]
[1733798214183,0.002,97495.0,97494.0,0.04487269]
[1733798214379,0.002,97495.0,97494.0,0.04487086]
[1733798214583,0.002,97495.0,97493.0,0.051257]
[1733798214792,0.12452704,97495.0,97494.0,1.6115]
[1733798215280,0.12352704,97495.0,97494.0,1.6115]
[1733798216175,0.12352704,97495.0,97494.0,1.6125]
[1733798216176,0.12252704,97495.0,97494.0,1.6125]
[1733798216582,0.12252704,97495.0,97494.0,1.5458675]
[1733798217086,0.24512347,97495.0,97494.0,1.5458675]
[1733798217385,0.24512347,97495.0,97494.0,0.0458675]
[1733798217386,0.12252704,97495.0,97494.0,0.0458675]
[1733798217581,0.21449391,97495.0,97494.0,0.0458675]
[1733798217783,0.21449391,97495.0,97494.0,1.501]
[1733798218179,0.12252704,97495.0,97494.0,1.501]
[1733798218888,0.12252704,97495.0,97494.0,1.5]
[1733798219089,0.24514954,97495.0,97494.0,1.5]
[1733798219283,0.24514954,97495.0,97482.0,0.051263]
[1733798219284,0.27572675,97495.0,97482.0,0.051263]
[1733798219483,0.05126,97487.0,97482.0,0.051263]
[1733798219682,0.051262,97484.0,97472.0,0.34476]
[1733798219892,0.09202554,97481.0,97478.0,0.051265]
[1733798220084,0.09202554,97479.0,97478.0,0.051265]
[1733798220386,0.09202554,97479.0,97478.0,1.551265]
[1733798220587,0.051264,97480.0,97478.0,1.5]
[1733798220789,0.3608,97479.0,97478.0,1.5]
[1733798221094,0.05127,97468.0,97467.0,7.45e-05]
[1733798221295,0.41207,97468.0,97467.0,7.45e-05]
[1733798221486,0.41207,97468.0,97467.0,1.5000745]
[1733798221891,0.41207,97468.0,97467.0,7.45e-05]
[1733798222599,0.41207,97468.0,97467.0,0.0050745]
[1733798222896,0.3608,97468.0,97467.0,0.0050745]
[1733798223293,0.48350494,97468.0,97467.0,0.0050745]
[1733798223496,0.3608,97468.0,97467.0,0.0060745]
[1733798223792,0.48347313,97468.0,97467.0,0.0092806]
[1733798224095,0.3608,97468.0,97467.0,0.0092806]
[1733798224303,0.3608,97468.0,97450.0,0.18383965]
[1733798224493,0.09200946,97454.0,97450.0,0.18383965]
[1733798224693,0.14328746,97454.0,97447.0,0.051281]
[1733798224889,0.3608,97448.0,97443.0,0.00153945]
[1733798225093,0.412081,97448.0,97443.0,0.00153945]
[1733798225399,7.54e-05,97447.0,97446.0,0.051281]
[1733798225895,7.54e-05,97447.0,97446.0,1.551281]
[1733798226293,7.54e-05,97447.0,97446.0,1.56731507]
[1733798226497,7.54e-05,97447.0,97446.0,1.5]
[1733798228390,0.051283,97444.0,97443.0,0.001]
[1733798228796,0.051283,97444.0,97438.0,0.0514098]
[1733798229000,0.412085,97439.0,97438.0,0.0001238]
[1733798229702,0.3608,97439.0,97411.0,0.1654]
[1733798229997,0.412092,97427.0,97420.0,0.051295]
[1733798230192,0.412092,97427.0,97421.0,0.00975951]
[1733798230388,0.412092,97427.0,97426.0,1.50153948]
[1733798232291,0.3608,97427.0,97426.0,1.50153948]
[1733798232489,0.3608,97427.0,97426.0,1.50453948]
[1733798232894,0.3628,97427.0,97426.0,1.50453948]
[1733798233297,0.005,97427.0,97426.0,1.50153948]
[1733798233603,0.003,97427.0,97426.0,1.50453948]
[1733798234099,0.3608,97429.0,97427.0,0.051291]
[1733798234494,0.3608,97439.0,97437.0,0.051286]
[1733798235300,0.3608,97450.0,97446.0,0.051282]
[1733798236002,0.3608,97450.0,97446.0,1.551282]
[1733798236195,0.3608,97450.0,97446.0,1.55448838]
[1733798236393,0.3608,97450.0,97446.0,1.57052027]
[1733798236595,0.3608,97450.0,97446.0,1.52423827]
[1733798236801,0.051281,97448.0,97446.0,1.52103189]
[1733798237001,0.3608,97450.0,97446.0,1.52103189]
[1733798237499,0.3608,97450.0,97446.0,1.52203189]
[1733798237701,0.0513564,97447.0,97446.0,1.52203189]
[1733798238104,0.0513564,97447.0,97446.0,0.006]
[1733798238300,0.0513564,97447.0,97420.0,0.10100093]
[1733798238301,7.54e-05,97447.0,97425.0,0.051293]
[1733798238502,0.412086,97439.0,97427.0,1.51603512]
[1733798238800,0.412086,97439.0,97428.0,0.01603512]
[1733798239001,0.412086,97439.0,97429.0,0.01603512]
[1733798239202,0.3608,97439.0,97430.0,0.01603512]
[1733798239406,0.3608,97439.0,97427.0,1.5006]
[1733798239407,0.051289,97432.0,97431.0,0.01603512]
[1733798239610,0.0573,97438.0,97427.0,1.5006]
[1733798239611,0.051291,97428.0,97427.0,1.50052]
[1733798239799,0.38899883,97428.0,97427.0,1.5436942]
[1733798240100,0.38899883,97428.0,97427.0,1.5456942]
[1733798240304,0.38899883,97428.0,97427.0,0.0436942]
[1733798240502,0.38899883,97428.0,97427.0,0.01803623]
[1733798240704,0.38899883,97428.0,97427.0,0.01603623]
[1733798241805,0.38899883,97428.0,97427.0,0.00472693]
[1733798242004,0.39099883,97428.0,97426.0,0.00153948]
[1733798243004,0.39399883,97428.0,97426.0,0.00153948]
[1733798243210,0.39999883,97428.0,97427.0,0.001]
[1733798243514,0.39999883,97428.0,97426.0,0.00153948]
[1733798243515,0.39999883,97428.0,97426.0,0.001]
[1733798243899,0.39999883,97428.0,97418.0,1.5]
[1733798244100,0.39999883,97428.0,97400.0,0.20100093]
[1733798244101,0.412096,97419.0,97400.0,0.1]
[1733798244306,0.0569,97418.0,97400.0,0.1]
[1733798244611,0.14890946,97418.0,97400.0,0.1]
[1733798244907,0.0569,97418.0,97400.0,0.1]
[1733798245508,0.0649,97418.0,97417.0,0.00107549]
[1733798246103,0.0649,97418.0,97417.0,2.255e-05]
[1733798246407,0.18712562,97418.0,97417.0,2.255e-05]
[1733798246610,0.18712562,97418.0,97400.0,0.1]
[1733798246611,0.3649,97418.0,97400.0,0.1]
[1733798246911,0.772905,97401.0,97400.0,0.1]
[1733798247110,0.772905,97401.0,97400.0,0.07868777]
[1733798247913,0.051311,97391.0,97390.0,0.00154028]
[1733798248216,0.412111,97391.0,97390.0,0.00154028]
[1733798249505,0.412111,97391.0,97390.0,0.00454028]
[1733798249707,0.41222251,97391.0,97390.0,0.003]
[1733798249914,0.051315,97382.0,97380.0,0.00010945]
[1733798250110,0.4143,97381.0,97380.0,0.00010945]
[1733798250709,0.051317,97379.0,97355.0,0.00154059]
[1733798250907,0.3608,97358.0,97356.0,0.00320946]
[1733798251112,0.3608,97358.0,97357.0,0.00320946]
[1733798251308,0.3608,97358.0,97355.0,0.00154059]
[1733798251511,0.051329,97357.0,97355.0,0.00154059]
[1733798252018,0.051329,97357.0,97356.0,0.005]
[1733798252620,0.051329,97357.0,97355.0,0.00654059]
[1733798253416,0.051329,97357.0,97356.0,0.003]
[1733798253916,0.051329,97357.0,97356.0,0.0190489]
[1733798254113,0.051329,97357.0,97356.0,0.003]
[1733798254316,0.051329,97357.0,97355.0,0.00954059]
[1733798254617,0.051329,97357.0,97356.0,0.01604914]
[1733798255415,0.051329,97357.0,97356.0,0.005]
[1733798255825,0.108229,97357.0,97356.0,0.005]
[1733798256019,0.108229,97357.0,97356.0,0.008]
[1733798256321,0.17367985,97357.0,97356.0,0.008]
[1733798256511,0.17367985,97357.0,97356.0,0.007]
[1733798256713,0.17367985,97357.0,97356.0,0.004]
[1733798256911,0.17367985,97357.0,97356.0,0.005]
[1733798257111,0.17367985,97357.0,97356.0,0.001]
[1733798257319,0.18267985,97357.0,97356.0,0.002]
[1733798257822,0.051334,97347.0,97346.0,0.00010197]
[1733798258025,0.3608,97347.0,97346.0,0.00010197]
[1733798258226,0.13135085,97357.0,97346.0,0.00010197]
[1733798258227,0.009,97357.0,97356.0,0.051329]
[1733798258418,0.009,97357.0,97347.0,0.220134]
[1733798258623,0.051332,97352.0,97348.0,0.01925858]
[1733798258819,0.051332,97352.0,97351.0,1.5]
[1733798259128,0.051334,97347.0,97346.0,0.00010197]
[1733798259328,0.412134,97347.0,97346.0,0.01615269]
[1733798259629,0.412134,97347.0,97346.0,0.00010197]
[1733798260720,0.416134,97347.0,97346.0,0.00010197]
[1733798260926,0.416134,97347.0,97346.0,0.01615259]
[1733798261337,0.416134,97347.0,97346.0,0.00010197]
[1733798261824,0.416134,97347.0,97346.0,0.01615254]
[1733798262029,0.004,97347.0,97346.0,0.01615254]
[1733798262429,0.004,97347.0,97332.0,0.01148004]
[1733798262430,0.05542422,97347.0,97332.0,0.0015412]
[1733798262628,0.05135,97316.0,97310.0,0.3608]
[1733798262828,0.3608,97317.0,97311.0,0.00321019]
[1733798263035,0.051353,97312.0,97310.0,0.3608]
[1733798263326,0.051353,97312.0,97311.0,0.04815302]
[1733798263520,0.051353,97312.0,97311.0,0.0032102]
[1733798265318,0.052353,97312.0,97311.0,0.00321097]
[1733798265736,0.052353,97312.0,97311.0,1.51290751]
[1733798265926,0.051353,97312.0,97311.0,1.50721097]
[1733798266126,0.051353,97312.0,97311.0,1.50921097]
[1733798266634,0.051353,97312.0,97311.0,1.50521097]
[1733798266835,0.051353,97312.0,97311.0,1.504]
[1733798267928,0.051355,97307.0,97306.0,7.854e-05]
[1733798268130,0.051358,97301.0,97300.0,0.1]
[1733798269831,0.051358,97301.0,97300.0,0.103]
[1733798270929,0.051358,97301.0,97300.0,0.105]
[1733798272926,0.051358,97301.0,97300.0,0.10821175]
[1733798273323,0.051358,97301.0,97300.0,0.105]
[1733798273730,0.051358,97301.0,97300.0,0.103]
[1733798273925,0.051358,97301.0,97300.0,0.105]
[1733798274126,0.72264001,97307.0,97300.0,0.105]
[1733798274334,0.7216,97307.0,97304.0,0.051356]
[1733798274523,0.3608,97307.0,97306.0,0.051356]
[1733798274829,0.051353,97312.0,97306.0,1.55456767]
[1733798275032,0.051353,97312.0,97307.0,0.05991167]
[1733798275230,0.051353,97312.0,97308.0,0.00321167]
[1733798275434,0.051353,97311.0,97309.0,0.00321167]
[1733798275626,0.3608,97312.0,97306.0,1.50052]
[1733798275826,0.051358,97302.0,97300.0,0.1]
[1733798277130,0.00012098,97301.0,97290.0,0.0001215]
[1733798277327,0.05137,97278.0,97277.0,1.5]
[1733798277530,0.41217,97278.0,97277.0,1.5]
[1733798277735,0.41217,97278.0,97277.0,1.50321236]
[1733798278733,0.41217,97278.0,97277.0,0.00321236]
[1733798278936,0.0588,97286.0,97277.0,0.00321236]
[1733798279135,0.3608,97278.0,97277.0,0.051371]
[1733798279323,0.3608,97278.0,97277.0,0.00321233]
[1733798279833,0.3608,97278.0,97263.0,0.00154185]
[1733798280044,0.14312473,97270.0,97263.0,0.00154185]
[1733798280526,0.09174973,97268.0,97263.0,0.01150344]
[1733798280732,0.09174973,97267.0,97263.0,0.00154185]
[1733798280925,0.09174973,97272.0,97264.0,0.00012226]
[1733798281129,0.09174973,97273.0,97269.0,0.051375]
[1733798281735,0.09174973,97274.0,97270.0,0.051374]
[1733798281934,0.14312173,97275.0,97264.0,0.00012226]
[1733798282134,0.09174973,97276.0,97264.0,0.00012226]
[1733798282432,0.003,97270.0,97264.0,0.00012226]
[1733798282632,0.051377,97266.0,97264.0,0.00012226]
[1733798284235,0.3628,97270.0,97264.0,0.00012226]
[1733798284440,0.002,97270.0,97268.0,0.051375]
[1733798284931,0.002,97270.0,97269.0,0.04496954]
[1733798285130,0.36188001,97288.0,97269.0,0.04496954]
[1733798285131,0.09174973,97282.0,97269.0,0.04496954]
[1733798285328,0.09174973,97283.0,97276.0,0.3608]
[1733798285534,0.09174973,97283.0,97282.0,0.051368]
[1733798285728,0.36184001,97288.0,97284.0,0.051367]
[1733798285931,0.3608,97288.0,97285.0,0.0571]
[1733798287239,0.3698,97288.0,97285.0,0.0581]
[1733798288029,0.09174973,97287.0,97285.0,0.0581]
[1733798288235,0.09174973,97286.0,97285.0,0.0591]
[1733798288432,0.37584001,97288.0,97285.0,0.0591]
[1733798288641,0.3748,97288.0,97285.0,0.0591]
[1733798288839,0.426165,97288.0,97285.0,0.002]
[1733798289137,0.421165,97288.0,97285.0,0.001]
[1733798289336,0.005,97287.0,97285.0,0.002]
[1733798289531,0.005,97287.0,97285.0,0.053367]
[1733798289739,0.014,97287.0,97285.0,0.053367]
[1733798290240,0.10588474,97287.0,97285.0,0.053367]
[1733798290547,0.09692654,97287.0,97286.0,0.3608]
[1733798290745,0.005,97287.0,97286.0,0.3608]
[1733798290940,0.005,97287.0,97286.0,0.4057645]
[1733798291247,0.009,97288.0,97287.0,0.051366]
[1733798291248,0.014,97288.0,97287.0,0.051366]
[1733798291731,0.014,97288.0,97287.0,1.59632578]
[1733798291934,0.014,97288.0,97287.0,1.5545774]
[1733798292133,0.05981308,97294.0,97293.0,0.051362]
[1733798292445,0.00012098,97301.0,97300.0,0.051359]
[1733798292645,0.00012098,97301.0,97300.0,0.0545704]
[1733798292840,0.00012098,97301.0,97300.0,0.07062713]
[1733798293039,0.00012098,97301.0,97300.0,0.0545704]
[1733798293244,0.00012098,97301.0,97300.0,1.5545704]
[1733798294839,0.00012098,97301.0,97300.0,1.5555704]
[1733798295036,0.12274332,97314.0,97300.0,1.54916637]
[1733798295236,0.15498329,97321.0,97300.0,1.54916637]
[1733798295237,0.12274332,97315.0,97313.0,0.051352]
[1733798295537,0.00154172,97321.0,97317.0,0.05135]
[1733798295735,0.12428504,97321.0,97318.0,0.0032114]
[1733798295940,0.12274332,97320.0,97319.0,0.0545604]
[1733798296137,0.12284379,97320.0,97319.0,0.0545604]
[1733798296442,0.00010047,97320.0,97319.0,0.0545604]
[1733798296645,0.00010047,97320.0,97319.0,1.5545604]
[1733798297742,0.00010047,97320.0,97319.0,1.5032114]
[1733798297937,0.12283783,97320.0,97319.0,1.5032114]
[1733798298134,0.00010047,97320.0,97319.0,0.0032114]
[1733798298845,0.00410047,97320.0,97319.0,0.0032114]
[1733798299244,0.01310047,97320.0,97319.0,0.0042114]
[1733798299844,0.16654204,97320.0,97300.0,0.051358]
[1733798300151,0.051357,97304.0,97300.0,0.051358]
[1733798300549,0.412158,97301.0,97291.0,0.01022377]
[1733798300850,0.412158,97301.0,97282.0,0.051368]
[1733798300851,0.051362,97294.0,97282.0,0.051368]
[1733798301067,0.15339728,97290.0,97283.0,1.551367]
[1733798301245,0.15339728,97289.0,97283.0,1.551367]
[1733798301451,0.3608,97284.0,97283.0,1.5]
[1733798302557,0.51419728,97284.0,97283.0,1.5]
[1733798302750,0.051369,97282.0,97271.0,0.051374]
[1733798302954,0.12272057,97276.0,97263.0,0.36234225]
[1733798303148,0.12272057,97276.0,97273.0,0.051373]
[1733798303454,0.0591,97281.0,97273.0,0.051373]
[1733798303655,0.12271053,97276.0,97273.0,0.051373]
[1733798304548,0.12271053,97277.0,97273.0,0.051373]
[1733798304747,0.12271053,97277.0,97272.0,1.50056]
[1733798304950,0.12271053,97275.0,97272.0,1.5]
[1733798305257,0.3608,97276.0,97272.0,1.5]
[1733798305258,0.12271053,97274.0,97272.0,1.5]
[1733798305858,0.051372,97275.0,97272.0,1.5]
[1733798306049,0.051373,97274.0,97272.0,1.5]
[1733798307148,7.219e-05,97273.0,97272.0,1.5]
[1733798307353,0.05004093,97273.0,97272.0,1.5]
[1733798307747,0.05004093,97273.0,97264.0,0.00012226]
[1733798307748,0.051377,97265.0,97264.0,0.00012226]
[1733798307947,0.412177,97265.0,97264.0,0.00012226]
[1733798309156,0.3608,97265.0,97264.0,0.00012226]
[1733798309456,0.3638,97265.0,97264.0,0.00012226]
[1733798309956,0.3638,97265.0,97264.0,1.50012226]
[1733798310353,0.003,97265.0,97264.0,1.50012226]
[1733798311456,0.004,97265.0,97264.0,1.50012226]
[1733798312051,0.003,97265.0,97264.0,1.50333492]
[1733798312655,0.003,97265.0,97264.0,1.50012226]
[1733798313261,0.051377,97266.0,97264.0,1.50012226]
[1733798313561,0.001,97265.0,97264.0,1.50012226]
[1733798313770,0.001,97265.0,97254.0,0.01012659]
[1733798313771,0.05138,97259.0,97254.0,0.01012659]
[1733798314058,0.3608,97257.0,97249.0,0.051385]
[1733798314368,0.3608,97257.0,97250.0,0.00321304]
[1733798314550,0.3608,97257.0,97251.0,0.00321304]
[1733798314752,0.3608,97257.0,97255.0,1.5]
[1733798315262,0.051382,97256.0,97255.0,1.5]
[1733798315758,0.106082,97256.0,97255.0,1.5]
[1733798316257,0.051385,97250.0,97249.0,0.00010267]
[1733798318569,0.051385,97250.0,97234.0,0.0015424]
[1733798318753,0.3608,97235.0,97234.0,0.0015424]
[1733798318955,0.3608,97235.0,97234.0,1.5015424]
[1733798318956,0.412193,97235.0,97234.0,1.5015424]
[1733798319565,0.412193,97235.0,97234.0,0.0015424]
[1733798319756,0.412193,97235.0,97234.0,0.0055424]
[1733798319953,0.412193,97235.0,97234.0,0.0105424]
[1733798320160,0.413193,97235.0,97234.0,0.0105424]
[1733798320361,0.3618,97235.0,97234.0,0.0619364]
[1733798321060,0.3618,97235.0,97234.0,1.5619364]
[1733798321464,0.001,97235.0,97234.0,1.56514976]
[1733798322461,0.001,97235.0,97234.0,1.5619364]
[1733798326566,0.001,97235.0,97234.0,1.57800288]
[1733798330472,0.3608,97247.0,97239.0,0.051391]
[1733798330674,0.3608,97247.0,97240.0,0.01606648]
[1733798330970,0.3608,97247.0,97241.0,0.01606648]
[1733798331270,0.3608,97247.0,97242.0,0.01606648]
[1733798331469,0.3608,97247.0,97243.0,0.01606648]
[1733798331671,0.3608,97247.0,97239.0,0.051391]
[1733798331672,0.3608,97247.0,97244.0,0.01606648]
[1733798331874,0.3608,97247.0,97245.0,0.01606648]
[1733798332067,0.3608,97247.0,97243.0,0.051388]
[1733798332068,0.3608,97247.0,97246.0,0.01606648]
[1733798332770,0.3608,97247.0,97246.0,0.00321322]
[1733798333164,0.3608,97255.0,97253.0,0.051384]
[1733798333368,0.3608,97255.0,97246.0,0.00321322]
[1733798333369,0.12268583,97263.0,97254.0,0.00321322]
[1733798333568,0.00104001,97266.0,97264.0,0.051378]
[1733798333773,0.00104001,97266.0,97259.0,0.3608]
[1733798333774,0.1756034,97270.0,97265.0,1.50321322]
[1733798333967,0.05291757,97270.0,97266.0,0.00321322]
[1733798334176,0.05291757,97270.0,97267.0,0.00321322]
[1733798334375,0.05291757,97270.0,97268.0,0.00321322]
[1733798334670,0.05291757,97270.0,97269.0,0.00321322]
[1733798335674,0.05291757,97270.0,97265.0,1.50052]
[1733798335675,0.00154257,97270.0,97265.0,1.50052]
[1733798335869,0.12296328,97267.0,97266.0,0.00321276]
[1733798336069,0.00154257,97270.0,97266.0,0.00321276]
[1733798336070,0.12296328,97268.0,97266.0,0.00321276]
[1733798336269,0.12296328,97268.0,97267.0,0.00321276]
[1733798336675,0.12296328,97269.0,97268.0,0.051376]
[1733798336872,0.01454257,97270.0,97268.0,0.05458876]
[1733798337174,0.01454257,97270.0,97269.0,0.00321276]
[1733798337379,0.01454257,97270.0,97269.0,0.05951276]
[1733798337576,0.01454257,97270.0,97269.0,0.10448348]
[1733798337781,0.01454257,97270.0,97269.0,0.34960302]
[1733798337969,0.12296328,97294.0,97292.0,0.051363]
[1733798338169,0.12289703,97294.0,97293.0,1.5]
[1733798338380,0.0577,97299.0,97293.0,1.5]
[1733798338381,0.12289703,97296.0,97293.0,1.5]
[1733798338589,0.0577,97299.0,97293.0,1.5]
[1733798338779,0.0577,97299.0,97294.0,0.00321171]
[1733798338979,0.00012019,97298.0,97293.0,1.50056]
[1733798339277,0.12301722,97298.0,97296.0,0.051361]
[1733798339675,0.12301722,97298.0,97297.0,0.00321167]
[1733798339881,0.00012019,97298.0,97297.0,0.00321167]
[1733798341078,0.00012019,97298.0,97294.0,0.001]
[1733798341478,0.051361,97295.0,97294.0,0.001]
[1733798341777,0.17425803,97295.0,97294.0,0.001]
[1733798342378,0.17404126,97295.0,97294.0,0.001]
[1733798342576,0.051363,97291.0,97290.0,8.47e-05]
[1733798342777,0.5348393,97291.0,97290.0,8.47e-05]
[1733798342977,0.412163,97291.0,97290.0,8.47e-05]
[1733798343882,0.42202319,97291.0,97290.0,8.47e-05]
[1733798345389,0.42602319,97291.0,97290.0,8.47e-05]
[1733798345582,0.42602319,97291.0,97278.0,0.05137]
[1733798345583,0.051369,97281.0,97278.0,0.05137]
[1733798345884,0.37466019,97291.0,97251.0,0.2458011]
[1733798345885,0.051373,97274.0,97270.0,0.051374]
[1733798346189,0.3608,97279.0,97254.0,1.5]
[1733798346486,0.3608,97266.0,97256.0,0.345568]
[1733798346675,0.3608,97266.0,97263.0,0.051378]
[1733798347981,0.3608,97266.0,97264.0,0.051378]
[1733798348175,0.0556,97270.0,97269.0,0.051375]
[1733798348381,0.4164,97270.0,97269.0,0.051375]
[1733798348680,0.007,97274.0,97273.0,0.051373]
[1733798348882,0.3608,97279.0,97273.0,0.051373]
[1733798349081,0.3608,97279.0,97264.0,0.10100093]
[1733798349282,0.3608,97279.0,97274.0,1.5]
[1733798350185,0.051371,97278.0,97274.0,1.5]
[1733798351788,0.36492001,97279.0,97278.0,0.05137]
[1733798351985,0.3638,97279.0,97278.0,0.05137]
[1733798352482,0.003,97279.0,97278.0,0.05137]
[1733798352684,0.003,97279.0,97278.0,0.05458205]
[1733798352883,0.3608,97290.0,97284.0,0.051367]
[1733798353280,0.3608,97290.0,97285.0,0.051366]
[1733798353677,0.3608,97290.0,97289.0,0.051365]
[1733798354276,0.3638,97290.0,97289.0,0.051365]
[1733798354485,0.003,97290.0,97289.0,0.051365]
[1733798354779,0.003,97290.0,97289.0,0.0545768]
[1733798355082,0.003,97290.0,97289.0,1.5545768]
[1733798355983,0.005,97290.0,97289.0,1.5565768]
[1733798356582,0.412162,97294.0,97289.0,1.5042118]
[1733798356777,0.003,97290.0,97289.0,1.501]
[1733798357284,0.005,97290.0,97289.0,1.502]
[1733798357785,0.36188001,97294.0,97274.0,0.18435082]
[1733798357991,0.36188001,97294.0,97271.0,0.3608]
[1733798357992,0.412168,97282.0,97276.0,0.051371]
[1733798358292,0.412168,97282.0,97277.0,0.00321212]
[1733798358483,0.412168,97282.0,97278.0,0.00321212]
[1733798358691,0.412168,97282.0,97276.0,0.051371]
[1733798358990,0.3608,97282.0,97272.0,1.50052]
[1733798359181,0.3608,97285.0,97283.0,0.051368]
[1733798359886,0.3608,97285.0,97284.0,0.00321208]
[1733798360989,0.3628,97285.0,97284.0,0.00321208]
[1733798361678,0.3628,97285.0,97284.0,1.50321208]
[1733798362385,0.412167,97285.0,97284.0,1.50321208]
[1733798362589,0.415167,97285.0,97284.0,1.50421208]
[1733798362789,0.415167,97285.0,97284.0,1.501]
[1733798363186,0.412167,97285.0,97284.0,0.002]
[1733798363493,0.412167,97285.0,97277.0,0.0098879]
[1733798363693,0.412167,97285.0,97278.0,1.5]
[1733798363886,0.414167,97285.0,97278.0,1.5]
[1733798364393,0.418167,97285.0,97284.0,0.001]
[1733798364695,0.54080507,97285.0,97284.0,0.001]
[1733798364896,0.54080507,97285.0,97284.0,0.00421224]
[1733798365284,0.54080507,97285.0,97284.0,0.001]
[1733798365494,0.418167,97285.0,97284.0,0.00421225]
[1733798365791,0.48980789,97285.0,97284.0,0.00421225]
[1733798365993,0.48380789,97285.0,97284.0,0.00321225]
[1733798366193,0.3608,97285.0,97284.0,0.05457925]
[1733798366498,0.3628,97285.0,97284.0,0.05457925]
[1733798366797,0.3628,97285.0,97284.0,1.55457925]
[1733798366996,0.3628,97285.0,97284.0,1.73893007]
[1733798367196,0.3688,97285.0,97284.0,1.73893007]
[1733798368189,0.3668,97285.0,97284.0,1.73893007]
[1733798368395,0.3678,97285.0,97284.0,1.73893007]
[1733798369002,0.3628,97285.0,97284.0,1.73893007]
[1733798369301,0.3628,97285.0,97284.0,1.73993007]
[1733798369500,0.3608,97285.0,97284.0,1.73993007]
[1733798369800,0.3608,97285.0,97284.0,1.55757925]
[1733798369993,0.12300789,97293.0,97284.0,1.50621225]
[1733798370195,0.3608,97295.0,97288.0,0.18455351]
[1733798370496,0.3608,97295.0,97294.0,0.051362]
[1733798370699,0.3608,97295.0,97294.0,0.05457425]
[1733798370889,0.17910789,97297.0,97294.0,0.05457425]
[1733798371094,0.17910789,97297.0,97296.0,0.051361]
[1733798371303,0.17910789,97297.0,97296.0,0.05457325]
[1733798371693,0.0561,97297.0,97287.0,0.18455351]
[1733798371894,0.3608,97294.0,97286.0,0.18455351]
[1733798372096,0.48382226,97294.0,97286.0,0.18455351]
[1733798372397,0.3608,97294.0,97285.0,0.18455351]
[1733798372600,0.3608,97294.0,97284.0,1.51272596]
[1733798372601,0.12302226,97296.0,97295.0,0.051361]
[1733798372794,0.001,97297.0,97295.0,0.051361]
[1733798373298,0.001,97297.0,97296.0,1.5566]
[1733798373495,0.001,97297.0,97296.0,1.80561244]
[1733798373694,0.48486227,97313.0,97312.0,0.051352]
[1733798373695,0.00104001,97313.0,97312.0,0.051352]
[1733798373893,0.00154191,97316.0,97315.0,0.051351]
[1733798374091,0.00154191,97316.0,97315.0,0.05456234]
[1733798374295,0.00154191,97316.0,97315.0,1.55456234]
[1733798374793,0.00154191,97316.0,97315.0,0.00321134]
[1733798374794,0.00162221,97316.0,97315.0,0.00321134]
[1733798374998,0.00162221,97316.0,97279.0,0.3608]
[1733798374999,0.00162221,97316.0,97301.0,0.30737293]
[1733798375303,0.051357,97304.0,97302.0,0.01926843]
[1733798375597,0.17422001,97304.0,97303.0,0.03532578]
[1733798375792,0.36184001,97305.0,97303.0,0.01605735]
[1733798375995,0.3608,97305.0,97294.0,0.01008831]
[1733798376194,0.12286256,97301.0,97299.0,0.051359]
[1733798376503,0.12286256,97302.0,97300.0,0.00321164]
[1733798376695,0.3608,97305.0,97301.0,0.05456964]
[1733798376896,0.3608,97305.0,97302.0,0.00321164]
[1733798376897,0.008,97304.0,97302.0,0.00321164]
[1733798377094,0.008,97304.0,97301.0,0.051358]
[1733798377291,0.008,97304.0,97302.0,0.00321161]
[1733798377496,0.002,97304.0,97301.0,0.051358]
[1733798377701,0.002,97304.0,97302.0,0.00321163]
[1733798377897,0.002,97304.0,97301.0,0.051358]
[1733798378196,0.002,97304.0,97290.0,0.11103447]
[1733798378197,0.002,97304.0,97303.0,0.051357]
[1733798378403,0.3608,97305.0,97303.0,0.05456862]
[1733798378703,0.3608,97305.0,97304.0,0.00321162]
[1733798379594,0.3608,97305.0,97304.0,1.50321162]
[1733798379796,0.3628,97305.0,97304.0,1.50321162]
[1733798380301,0.3628,97305.0,97304.0,1.51440166]
[1733798380602,0.3668,97305.0,97304.0,1.51440166]
[1733798381101,0.3608,97305.0,97304.0,1.51540166]
[1733798382192,0.3608,97305.0,97304.0,1.51440166]
[1733798382506,0.3608,97305.0,97304.0,1.51540166]
[1733798383199,0.3608,97305.0,97304.0,1.51340166]
[1733798385298,0.3608,97305.0,97304.0,1.51440166]
[1733798386310,0.3608,97305.0,97304.0,1.51540166]
[1733798386800,0.3608,97305.0,97304.0,1.51440166]
[1733798387001,0.3608,97305.0,97304.0,1.51440135]
[1733798387197,0.12452589,97316.0,97305.0,0.051356]
[1733798387512,0.12452589,97316.0,97304.0,1.51440135]
[1733798387513,0.00162221,97316.0,97314.0,0.051351]
[1733798387806,0.00162221,97316.0,97315.0,1.50321131]
[1733798388312,8.03e-05,97316.0,97315.0,1.50321131]
[1733798388810,8.03e-05,97316.0,97315.0,1.74910965]